fUSD/lending_fUSD_20260405
["ID","MTS","AMOUNT","RATE_DAILY","PERIOD"]
[419775022,1775371845272,-385.86149772,0.00014373,2]
[419775023,1775371845282,-500.0,0.00014373,2]
[419775024,1775371845291,-598.99606082,0.00014373,2]
[419775025,1775371845301,-500.0,0.00014373,2]
[419775026,1775371845310,-500.0,0.00014373,2]
[419775027,1775371845319,-500.0,0.00014373,2]
[419775028,1775371845329,-607.20051974,0.00014373,2]
[419775029,1775371845338,-500.0,0.00014373,2]
[419775030,1775371845347,-500.0,0.00014373,2]
[419775031,1775371845357,-500.50066882,0.00014373,2]
[419775032,1775371845366,-515.7358709,0.00014373,2]
[419775033,1775371845375,-500.0,0.00014373,2]
[419775034,1775371845384,-168.69935806,0.00014373,2]
[419775035,1775371845394,-500.0,0.00014373,2]
[419775036,1775371845406,-500.0,0.00014373,2]
[419775037,1775371845415,-500.0,0.00014373,2]
[419775038,1775371845424,-500.0,0.00014373,2]
[419775039,1775371845434,-500.0,0.00014373,2]
[419775040,1775371845444,-500.0,0.00014373,2]
[419775041,1775371845453,-500.0,0.00014373,2]
[419775042,1775371845462,-500.0,0.00014373,2]
[419775043,1775371845472,-500.0,0.00014373,2]
[419775044,1775371845481,-519.03182682,0.00014373,2]
[419775045,1775371845491,-500.0,0.00014373,2]
[419775046,1775371845500,-500.0,0.00014373,2]
[419775047,1775371845509,-312.74353669,0.00014373,2]
[419775048,1775371845519,-202.64993829,0.00014373,2]
[419775049,1775371845528,-500.0,0.00014373,2]
[419775050,1775371845537,-500.0,0.00014373,2]
[419775051,1775371845546,-160.7467095,0.00014373,2]
[419775052,1775371845556,-500.0,0.00014373,2]
[419775053,1775371845565,-518.73332026,0.00014373,2]
[419775054,1775371845574,-500.0,0.00014373,2]
[419775055,1775371845584,-500.0,0.00014373,2]
[419775056,1775371845593,-210.98153295,0.00014373,2]
[419775057,1775371845602,-500.0,0.00014373,2]
[419775058,1775371845611,-162.72924009,0.00014373,2]
[419775059,1775371845620,-500.0,0.00014373,2]
[419775060,1775371845630,-500.0,0.00014373,2]
[419775061,1775371845639,-569.20510167,0.00014373,2]
[419775062,1775371845649,-5957.33,0.00014384,2]
[419775063,1775371845657,-166.66,0.00014384,2]
[419775064,1775371845668,-4173.49114286,0.00014385,2]
[419775065,1775371845678,-500.0,0.00014392,2]
[419775066,1775371845687,-500.0,0.00014392,2]
[419775067,1775371845697,-4731.517813,0.00014393,2]
[419775068,1775371845707,-236122.6984076,0.00014393,2]
[419775069,1775371845716,-150.0,0.000144,2]
[419775070,1775371845725,-150.0,0.000144,2]
[419775071,1775371845734,-150.0,0.000144,2]
[419775072,1775371845743,-150.0,0.000144,2]
[419775073,1775371845752,-150.0,0.000144,2]
[419775074,1775371845761,-150.0,0.000144,2]
[419775075,1775371845771,-150.0,0.000144,2]
[419775076,1775371845780,-150.0,0.000144,2]
[419775077,1775371845789,-150.0,0.000144,2]
[419775078,1775371845798,-150.0,0.000144,2]
[419775079,1775371845808,-150.0,0.000144,2]
[419775080,1775371845817,-150.0,0.000144,2]
[419775081,1775371845826,-150.0,0.000144,2]
[419775082,1775371845835,-150.05716299,0.000144,2]
[419775083,1775371845845,-150.0,0.000144,2]
[419775084,1775371845854,-2000.0,0.00014411,2]
[419775085,1775371845863,-2000.0,0.00014411,2]
[419775086,1775371845872,-2000.0,0.00014411,2]
[419775087,1775371845881,-2000.0,0.00014411,2]
[419775088,1775371845890,-2000.0,0.00014411,2]
[419775089,1775371845899,-2000.0,0.00014411,2]
[419775090,1775371845908,-2000.0,0.00014411,2]
[419775091,1775371845918,-2000.0,0.00014411,2]
[419775092,1775371845927,-2000.0,0.00014411,2]
[419775093,1775371845936,-2018.0,0.00014411,2]
[419775094,1775371845945,-150.0,0.00014417,2]
[419775095,1775371845955,-150.0,0.0001442,2]
[419775096,1775371845964,-1357.99078211,0.00014425,2]
[419775097,1775371845973,-150.0,0.00014425,2]
[419775098,1775371845983,-150.0,0.00014428,2]
[419775099,1775371845992,-150.0,0.00014428,2]
[419775100,1775371846002,-150.0,0.00014431,2]
[419775101,1775371846011,-150.0,0.00014435,2]
[419775102,1775371846022,-500.0,0.00014437,2]
[419775103,1775371846031,-534.54,0.00014437,2]
[419775104,1775371846040,-989.7,0.00014437,2]
[419775105,1775371846049,-1289.0,0.00014437,2]
[419775106,1775371846058,-889.96,0.00014437,2]
[419775107,1775371846067,-150.0,0.00014441,2]
[419775108,1775371846076,-150.0,0.0001445,2]
[419775109,1775371846085,-150.0,0.00014452,2]
[419775110,1775371846094,-150.0,0.00014453,2]
[419775111,1775371846103,-150.0,0.00014456,2]
[419775112,1775371846112,-150.0,0.00014456,2]
[419775113,1775371846122,-150.0,0.00014461,2]
[419775114,1775371846131,-150.0,0.00014463,2]
[419775115,1775371846140,-150.0,0.00014467,2]
[419775116,1775371846149,-150.0,0.0001447,2]
[419775117,1775371846158,-150.0,0.00014475,2]
[419775118,1775371846167,-508.0,0.00014476,3]
[419775119,1775371846176,-366.86,0.00014481,30]
[419775120,1775371846185,-150.0,0.00014481,2]
[419775121,1775371846195,-150.0,0.00014484,2]
[419775122,1775371846204,-150.0,0.00014484,2]
[419775123,1775371846214,-150.0,0.00014484,2]
[419775124,1775371846223,-150.0,0.00014487,2]
[419775125,1775371846232,-162.56651742,0.00014489,2]
[419775126,1775371846241,-1000.0,0.00014489,2]
[419775127,1775371846250,-627.70930647,0.00014489,2]
[419775128,1775371846260,-1000.0,0.00014489,2]
[419775129,1775371846269,-150.0,0.00014491,4]
[419775130,1775371846278,-150.0,0.00014494,2]
[419775131,1775371846287,-150.0,0.000145,2]
[419775132,1775371846296,-273.12261617,0.00014501,2]
[419775134,1775371846306,-150.0,0.00014501,2]
[419775135,1775371846315,-150.0,0.00014504,2]
[419775136,1775371846324,-9302.92,0.00014504,2]
[419775137,1775371846334,-150.0,0.00014507,2]
[419775138,1775371846343,-412.11,0.0001451,2]
[419775139,1775371846352,-10000.0,0.00014511,2]
[419775141,1775371846362,-150.0,0.00014512,2]
[419775142,1775371846371,-150.0,0.00014512,2]
[419775143,1775371846381,-150.0,0.00014522,2]
[419775144,1775371846390,-150.0,0.00014522,2]
[419775145,1775371846402,-150.0,0.00014525,2]
[419775146,1775371846411,-150.0,0.00014525,2]
[419775147,1775371846421,-150.0,0.00014533,2]
[419775148,1775371846430,-150.0,0.00014539,2]
[419775149,1775371846439,-150.0,0.0001454,2]
[419775150,1775371846448,-150.0,0.0001454,2]
[419775151,1775371846457,-150.0,0.00014542,2]
[419775152,1775371846467,-150.0,0.0001455,2]
[419775153,1775371846476,-150.0,0.00014557,2]
[419775154,1775371846485,-150.0,0.00014557,2]
[419775155,1775371846494,-150.0,0.0001456,2]
[419775156,1775371846504,-150.0,0.00014562,2]
[419775157,1775371846513,-150.0,0.00014568,2]
[419775158,1775371846522,-150.0,0.00014568,2]
[419775159,1775371846531,-150.0,0.00014568,2]
[419775160,1775371846540,-150.0,0.00014574,2]
[419775161,1775371846550,-150.0,0.00014575,2]
[419775162,1775371846559,-6733.22928325,0.00014576,2]
[419775163,1775371846568,-5000.0,0.00014576,2]
[419775164,1775371846578,-5000.0,0.00014576,2]
[419775165,1775371846587,-5000.0,0.00014576,2]
[419775166,1775371846596,-150.0,0.00014582,2]
[419775167,1775371846606,-150.0,0.00014588,2]
[419775168,1775371846615,-150.0,0.00014591,2]
[419775169,1775371846624,-150.0,0.00014596,2]
[419775170,1775371846633,-150.0,0.00014596,2]
[419775171,1775371846642,-160.9517,0.000146,2]
[419775172,1775371846652,-150.0,0.000146,2]
[419775173,1775371846661,-150.0,0.000146,2]
[419775174,1775371846670,-150.0,0.00014603,2]
[419775175,1775371846679,-150.0,0.00014609,2]
[419775176,1775371846688,-1000.0,0.00014612,2]
[419775177,1775371846698,-150.0,0.00014613,2]
[419775178,1775371846707,-150.0,0.0001462,2]
[419775179,1775371846716,-150.0,0.00014623,2]
[419775180,1775371846725,-150.0,0.00014625,2]
[419775181,1775371846735,-150.0,0.00014625,2]
[419775182,1775371846743,-150.0,0.00014625,2]
[419775183,1775371846753,-150.0,0.00014626,2]
[419775184,1775371846762,-150.0,0.00014629,2]
[419775185,1775371846771,-358.072623,0.0001464,2]
[419775186,1775371846780,-500.0,0.00014642,2]
[419775187,1775371846790,-150.0,0.00014643,2]
[419775188,1775371846799,-150.0,0.00014643,2]
[419775189,1775371846808,-150.0,0.0001465,2]
[419775190,1775371846818,-150.0,0.00014651,2]
[419775191,1775371846827,-150.0,0.00014653,2]
[419775192,1775371846841,-150.0,0.00014653,2]
[419775193,1775371846850,-150.0,0.00014653,2]
[419775194,1775371846860,-150.0,0.00014661,2]
[419775195,1775371846870,-150.0,0.00014663,2]
[419775196,1775371846879,-150.0,0.00014667,2]
[419775197,1775371846889,-150.0,0.00014667,2]
[419775198,1775371846898,-150.0,0.00014675,2]
[419775199,1775371846908,-150.0,0.00014678,2]
[419775200,1775371846918,-150.0,0.00014681,2]
[419775201,1775371846928,-150.0,0.00014681,2]
[419775202,1775371846938,-150.0,0.00014682,2]
[419775203,1775371846948,-150.0,0.00014684,2]
[419775204,1775371846958,-243.87,0.00014694,2]
[419775205,1775371846968,-150.0,0.00014696,2]
[419775206,1775371846978,-160.9517,0.000147,2]
[419775207,1775371846988,-150.0,0.000147,2]
[419775208,1775371846997,-150.0,0.00014704,2]
[419775209,1775371847007,-462.10311998,0.00014704,2]
[419775210,1775371847016,-150.0,0.00014709,2]
[419775211,1775371847026,-150.0,0.00014709,2]
[419775212,1775371847035,-150.0,0.00014713,2]
[419775213,1775371847364,-150.0,0.00014714,2]
[419775214,1775371847374,-150.0,0.0001472,2]
[419775215,1775371847384,-16593.86202587,0.00014722,2]
[419775216,1775371847393,-150.0,0.00014724,2]
[419775217,1775371847403,-150.0,0.00014725,2]
[419775218,1775371847412,-150.0,0.0001473,2]
[419775219,1775371847422,-150.0,0.00014733,2]
[419775220,1775371847431,-150.0,0.00014737,2]
[419775221,1775371847440,-150.0,0.00014737,2]
[419775222,1775371847450,-150.0,0.00014737,2]
[419775223,1775371847460,-150.0,0.00014744,2]
[419775224,1775371847469,-150.0,0.00014745,2]
[419775225,1775371847479,-150.0,0.00014748,2]
[419775226,1775371847488,-150.0,0.0001475,2]
[419775227,1775371847498,-150.0,0.00014765,2]
[419775228,1775371847507,-150.0,0.00014765,2]
[419775229,1775371847516,-150.0,0.00014765,2]
[419775230,1775371847526,-150.0,0.00014765,2]
[419775231,1775371847536,-150.0,0.00014773,2]
[419775232,1775371847545,-150.0,0.00014775,2]
[419775233,1775371847555,-150.0,0.00014776,2]
[419775234,1775371847564,-150.0,0.00014783,2]
[419775235,1775371847575,-150.0,0.00014785,2]
[419775236,1775371847584,-150.0,0.00014793,2]
[419775237,1775371847594,-150.0,0.00014793,2]
[419775238,1775371847603,-500.0,0.00014794,2]
[419775239,1775371847613,-624.84,0.00014794,2]
[419775240,1775371847623,-500.0,0.00014794,2]
[419775241,1775371847632,-500.0,0.00014794,2]
[419775242,1775371847642,-500.0,0.00014794,2]
[419775243,1775371847651,-500.0,0.00014794,2]
[419775244,1775371847661,-500.0,0.00014794,2]
[419775245,1775371847670,-500.4,0.00014794,2]
[419775246,1775371847679,-500.0,0.00014794,2]
[419775247,1775371847689,-500.0,0.00014794,2]
[419775248,1775371847698,-509.57,0.00014794,2]
[419775249,1775371847707,-553.41835149,0.00014795,2]
[419775250,1775371847717,-160.9517,0.000148,2]
[419775251,1775371847727,-150.0,0.000148,2]
[419775252,1775371847736,-150.0,0.000148,2]
[419775253,1775371847746,-150.0,0.000148,2]
[419775254,1775371847755,-150.0,0.000148,2]
[419775255,1775371847765,-150.0,0.00014805,2]
[419775256,1775371847775,-150.0,0.00014808,2]
[419775257,1775371847784,-183.16,0.00014814,2]
[419775258,1775371847793,-150.0,0.00014817,2]
[419775259,1775371847803,-150.0,0.00014821,2]
[419775260,1775371847812,-150.0,0.00014821,2]
[419775261,1775371847821,-150.0,0.00014821,2]
[419775262,1775371847830,-150.0,0.00014825,2]
[419775263,1775371847840,-150.0,0.00014825,2]
[419775264,1775371847850,-150.0,0.00014827,2]
[419775265,1775371847858,-1000.0,0.00014833,2]
[419775266,1775371847868,-150.0,0.00014835,2]
[419775267,1775371847877,-183.16,0.00014835,2]
[419775268,1775371847886,-150.0,0.00014839,2]
[419775269,1775371847896,-150.0,0.00014846,2]
[419775270,1775371847905,-150.0,0.00014849,2]
[419775271,1775371847924,-150.0,0.00014849,2]
[419775272,1775371847936,-150.0,0.0001485,2]
[419775273,1775371847946,-150.0,0.00014852,2]
[419775274,1775371847956,-15609.82,0.00014853,2]
[419775275,1775371847966,-150.0,0.00014857,2]
[419775276,1775371847976,-903.49,0.00014858,2]
[419775277,1775371847986,-150.0,0.00014866,2]
[419775278,1775371847996,-150.0,0.00014867,2]
[419775279,1775371848006,-150.0,0.0001487,2]
[419775280,1775371848016,-150.0,0.00014871,2]
[419775281,1775371848026,-150.0,0.00014875,2]
[419775282,1775371848035,-500.0,0.00014877,2]
[419775283,1775371848045,-150.0,0.00014877,2]
[419775284,1775371848055,-150.0,0.00014877,2]
[419775285,1775371848065,-150.0,0.0001488,2]
[419775286,1775371848075,-150.0,0.00014886,2]
[419775287,1775371848085,-150.0,0.00014887,2]
[419775288,1775371848095,-1000.0,0.00014899,2]
[419775289,1775371848105,-160.9517,0.000149,2]
[419775290,1775371848115,-150.0,0.000149,2]
[419775291,1775371848124,-1000.0,0.00014901,2]
[419775292,1775371848134,-150.0,0.00014902,2]
[419775293,1775371848144,-3000.0,0.00014904,2]
[419775294,1775371848154,-150.0,0.00014904,2]
[419775295,1775371848163,-150.0,0.00014905,2]
[419775296,1775371848173,-150.0,0.00014905,2]
[419775297,1775371848183,-150.0,0.00014905,2]
[419775298,1775371848193,-150.0,0.00014906,2]
[419775299,1775371848203,-1000.0,0.00014921,2]
[419775300,1775371848212,-1000.0,0.00014921,2]
[419775301,1775371848222,-1000.0,0.00014921,2]
[419775302,1775371848232,-1000.0,0.00014921,2]
[419775303,1775371848242,-1000.0,0.00014921,2]
[419775304,1775371848252,-1000.0,0.00014921,2]
[419775305,1775371848262,-1000.0,0.00014921,2]
[419775306,1775371848272,-1000.0,0.00014921,2]
[419775307,1775371848281,-1000.0,0.00014921,2]
[419775308,1775371848291,-1000.0,0.00014921,2]
[419775309,1775371848301,-1000.0,0.00014921,2]
[419775310,1775371848310,-1000.0,0.00014921,2]
[419775311,1775371848320,-743.80429884,0.00014921,2]
[419775312,1775371848330,-1000.0,0.00014921,2]
[419775313,1775371848341,-500.0,0.00014921,2]
[419775314,1775371848351,-1000.0,0.00014921,2]
[419775315,1775371848360,-1000.0,0.00014921,2]
[419775316,1775371848370,-1000.0,0.00014921,2]
[419775317,1775371848380,-1000.0,0.00014921,2]
[419775318,1775371848389,-1000.0,0.00014921,2]
[419775319,1775371848399,-1000.0,0.00014921,2]
[419775320,1775371848409,-1000.0,0.00014921,2]
[419775321,1775371848419,-1000.0,0.00014921,2]
[419775322,1775371848428,-1000.0,0.00014921,2]
[419775323,1775371848438,-189.74788311,0.00014921,2]
[419775324,1775371848448,-1000.0,0.00014921,2]
[419775325,1775371848458,-1000.0,0.00014921,2]
[419775326,1775371848468,-686.27125357,0.00014921,2]
[419775327,1775371848478,-790.32775663,0.00014921,2]
[419775328,1775371848488,-500.99241895,0.00014921,2]
[419775329,1775371848498,-1000.0,0.00014921,2]
[419775330,1775371848508,-1000.0,0.00014921,2]
[419775331,1775371848518,-1000.0,0.00014921,2]
[419775332,1775371848527,-150.0,0.00014922,2]
[419775333,1775371848537,-150.0,0.00014925,2]
[419775334,1775371848547,-150.0,0.00014927,2]
[419775335,1775371848557,-150.0,0.00014933,2]
[419775336,1775371848566,-150.0,0.00014933,2]
[419775337,1775371848576,-150.0,0.00014933,2]
[419775338,1775371848586,-150.0,0.00014933,2]
[419775339,1775371848595,-150.0,0.00014933,2]
[419775340,1775371848605,-150.0,0.00014933,2]
[419775341,1775371848615,-150.0,0.00014939,2]
[419775342,1775371848625,-150.0,0.00014947,2]
[419775343,1775371848634,-150.0,0.0001495,2]
[419775344,1775371848644,-150.0,0.00014957,2]
[419775345,1775371848654,-500.0,0.00014958,2]
[419775346,1775371848663,-500.0,0.00014958,2]
[419775347,1775371848673,-500.0,0.00014958,2]
[419775348,1775371848683,-500.0,0.00014958,2]
[419775349,1775371848693,-500.0,0.00014958,2]
[419775350,1775371848703,-163.60261744,0.00014958,2]
[419775351,1775371848712,-500.0,0.00014958,2]
[419775352,1775371848722,-160.34417201,0.00014958,2]
[419775353,1775371848732,-150.0,0.00014961,2]
[419775354,1775371848742,-150.0,0.00014961,2]
[419775355,1775371848757,-150.0,0.00014965,2]
[419775356,1775371848768,-150.0,0.00014967,2]
[419775357,1775371848778,-150.0,0.00014974,2]
[419775358,1775371848788,-150.0,0.00014975,2]
[419775359,1775371848798,-150.0,0.00014987,2]
[419775360,1775371848810,-150.0,0.00014987,2]
[419775361,1775371848820,-150.0,0.00014989,2]
[419775362,1775371848831,-150.0,0.00014989,2]
[419775363,1775371848842,-150.0,0.00014989,2]
[419775364,1775371848852,-150.0,0.00014991,2]
[419775365,1775371848863,-150.0,0.00014996,2]
[419775366,1775371848875,-300.0,0.00015,2]
[419775367,1775371848886,-150.0,0.00015,2]
[419775368,1775371848897,-150.0,0.00015,2]
[419775369,1775371848908,-150.0,0.00015008,2]
[419775370,1775371848918,-150.0,0.00015009,2]
[419775371,1775371848929,-687.00798773,0.00015016,2]
[419775372,1775371848939,-500.0,0.00015017,2]
[419775373,1775371848950,-534.54,0.00015017,2]
[419775374,1775371848961,-989.7,0.00015017,2]
[419775375,1775371848971,-1289.0,0.00015017,2]
[419775376,1775371848981,-889.96,0.00015017,2]
[419775377,1775371848991,-150.0,0.00015018,2]
[419775378,1775371849001,-150.0,0.00015018,2]
[419775379,1775371849011,-150.0,0.00015025,2]
[419775380,1775371849021,-150.0,0.00015026,2]
[419775381,1775371849031,-150.0,0.00015027,2]
[419775382,1775371849043,-150.0,0.00015028,2]
[419775383,1775371849053,-500.0,0.00015033,2]
[419775384,1775371849063,-500.0,0.00015033,2]
[419775385,1775371849073,-500.0,0.00015033,2]
[419775386,1775371849084,-1227.692277,0.00015037,2]
[419775387,1775371849094,-1500.0,0.00015037,2]
[419775388,1775371849104,-150.0,0.0001504,2]
[419775389,1775371849114,-150.0,0.00015043,2]
[419775390,1775371849124,-150.0,0.00015046,2]
[419775391,1775371849134,-150.0,0.00015046,2]
[419775392,1775371849145,-150.0,0.00015048,2]
[419775393,1775371849155,-150.0,0.0001505,2]
[419775394,1775371849165,-150.0,0.00015059,2]
[419775395,1775371849175,-150.0,0.00015061,2]
[419775396,1775371849185,-150.0,0.00015067,2]
[419775397,1775371849195,-150.0,0.00015068,2]
[419775398,1775371849206,-5957.33,0.00015068,2]
[419775399,1775371849216,-800.0,0.00015068,2]
[419775400,1775371849226,-150.0,0.00015074,2]
[419775401,1775371849236,-150.0,0.00015074,2]
[419775402,1775371849247,-150.0,0.00015074,2]
[419775403,1775371849257,-150.0,0.00015075,2]
[419775404,1775371849267,-150.0,0.00015078,2]
[419775405,1775371849278,-150.0,0.00015086,2]
[419775406,1775371849288,-150.0,0.00015089,2]
[419775407,1775371849300,-150.0,0.0001509,2]
[419775408,1775371849310,-150.0,0.00015093,2]
[419775409,1775371849321,-150.0,0.00015096,2]
[419775410,1775371849331,-150.0,0.000151,2]
[419775411,1775371849341,-27882.96674803,0.000151,2]
[419775412,1775371849351,-2947.22249094,0.000151,2]
[419775413,1775371849361,-150.0,0.00015102,2]
[419775414,1775371849371,-150.0,0.00015102,2]
[419775415,1775371849382,-150.0,0.00015109,2]
[419775416,1775371849393,-429.6676209,0.00015111,2]
[419775417,1775371849403,-150.0,0.00015113,2]
[419775418,1775371849413,-500.0,0.00015116,2]
[419775419,1775371849423,-150.0,0.00015122,2]
[419775420,1775371849433,-150.0,0.00015125,2]
[419775421,1775371849442,-150.0,0.00015129,2]
[419775422,1775371849452,-150.0,0.0001513,2]
[419775423,1775371849462,-150.0,0.0001513,2]
[419775424,1775371849472,-150.0,0.0001513,2]
[419775425,1775371849483,-150.0,0.00015133,2]
[419775426,1775371849492,-4173.49114286,0.00015142,2]
[419775427,1775371849503,-578.20924308,0.00015144,2]
[419775428,1775371849513,-1428.38747117,0.00015144,2]
[419775429,1775371849523,-500.0,0.00015144,2]
[419775430,1775371849533,-209.40437684,0.00015144,2]
[419775431,1775371849543,-200.0,0.00015144,2]
[419775432,1775371849553,-500.0,0.00015144,2]
[419775433,1775371849562,-721.12765535,0.00015144,2]
[419775434,1775371849572,-500.0,0.00015144,2]
[419775435,1775371849582,-500.0,0.00015144,2]
[419775436,1775371849596,-500.0,0.00015144,2]
[419775437,1775371849606,-500.0,0.00015144,2]
[419775438,1775371849617,-500.0,0.00015144,2]
[419775439,1775371849627,-151.0,0.00015144,2]
[419775440,1775371849637,-500.0,0.00015144,2]
[419775441,1775371849647,-151.0,0.00015144,2]
[419775442,1775371849658,-500.0,0.00015144,2]
[419775443,1775371849668,-151.0,0.00015144,2]
[419775444,1775371849678,-500.0,0.00015144,2]
[419775445,1775371849688,-154.76515316,0.00015144,2]
[419775446,1775371849699,-500.0,0.00015144,2]
[419775447,1775371849710,-500.0,0.00015144,2]
[419775448,1775371849720,-500.0,0.00015144,2]
[419775449,1775371849730,-500.0,0.00015144,2]
[419775450,1775371849746,-209.40437684,0.00015144,2]
[419775451,1775371849756,-500.0,0.00015144,2]
[419775452,1775371849987,-500.0,0.00015144,2]
[419775453,1775371849996,-500.0,0.00015144,2]
[419775454,1775371850006,-500.0,0.00015144,2]
[419775455,1775371850015,-500.0,0.00015144,2]
[419775456,1775371850024,-500.0,0.00015144,2]
[419775457,1775371850033,-500.0,0.00015144,2]
[419775458,1775371850042,-174.61919141,0.00015144,2]
[419775459,1775371850052,-500.0,0.00015144,2]
[419775460,1775371850061,-200.0,0.00015144,2]
[419775461,1775371850070,-743.50770149,0.00015144,2]
[419775462,1775371850079,-500.0,0.00015144,2]
[419775463,1775371850088,-151.0,0.00015144,2]
[419775464,1775371850098,-157.03985341,0.00015144,2]
[419775465,1775371850107,-170.0,0.00015144,2]
[419775466,1775371850116,-170.0,0.00015144,2]
[419775467,1775371850125,-693.3919763,0.00015144,2]
[419775468,1775371850134,-170.0,0.00015144,2]
[419775469,1775371850143,-170.0,0.00015144,2]
[419775470,1775371850153,-170.0,0.00015144,2]
[419775471,1775371850162,-170.0,0.00015144,2]
[419775472,1775371850172,-170.0,0.00015144,2]
[419775473,1775371850180,-170.0,0.00015144,2]
[419775474,1775371850189,-170.0,0.00015144,2]
[419775475,1775371850198,-170.0,0.00015144,2]
[419775476,1775371850208,-170.0,0.00015144,2]
[419775477,1775371850216,-279.9045709,0.00015144,2]
[419775478,1775371850226,-500.0,0.00015144,2]
[419775479,1775371850235,-500.0,0.00015144,2]
[419775480,1775371850244,-500.0,0.00015144,2]
[419775481,1775371850254,-500.0,0.00015144,2]
[419775482,1775371850263,-500.0,0.00015144,2]
[419775483,1775371850272,-1000.0,0.00015144,2]
[419775484,1775371850281,-1000.0,0.00015144,2]
[419775485,1775371850290,-1000.0,0.00015144,2]
[419775486,1775371850299,-1000.0,0.00015144,2]
[419775487,1775371850309,-1000.0,0.00015144,2]
[419775488,1775371850319,-1000.0,0.00015144,2]
[419775489,1775371850328,-1000.0,0.00015144,2]
[419775490,1775371850337,-1000.0,0.00015144,2]
[419775491,1775371850347,-424.86822135,0.00015144,2]
[419775492,1775371850356,-150.0,0.00015147,2]
[419775493,1775371850366,-150.0,0.00015148,2]
[419775494,1775371850375,-150.0,0.00015149,2]
[419775495,1775371850384,-8422.99193755,0.0001515,2]
[419775496,1775371850394,-871.95012592,0.0001515,2]
[419775497,1775371850403,-150.0,0.0001515,2]
[419775498,1775371850413,-150.0,0.00015153,2]
[419775499,1775371850422,-150.0,0.00015158,2]
[419775500,1775371850431,-150.0,0.00015158,2]
[419775501,1775371850440,-150.0,0.00015158,2]
[419775502,1775371850449,-1500.0,0.0001516,2]
[419775503,1775371850459,-1000.0,0.0001516,2]
[419775504,1775371850468,-150.0,0.00015165,2]
[419775505,1775371850477,-150.0,0.0001517,2]
[419775506,1775371850486,-150.0,0.00015175,2]
[419775507,1775371850496,-150.0,0.00015183,2]
[419775508,1775371850505,-150.0,0.00015184,2]
[419775509,1775371850514,-150.0,0.00015186,2]
[419775510,1775371850524,-150.0,0.00015186,2]
[419775511,1775371850534,-150.0,0.0001519,2]
[419775512,1775371850543,-500.0,0.00015199,2]
[419775513,1775371850552,-151.0,0.00015199,2]
[419775514,1775371850561,-322.47111,0.000152,2]
[419775515,1775371850571,-150.0,0.000152,2]
[419775516,1775371850580,-150.0,0.000152,2]
[419775517,1775371850590,-150.0,0.000152,2]
[419775518,1775371850599,-150.0,0.000152,2]
[419775519,1775371850609,-150.0,0.000152,2]
[419775520,1775371850618,-150.0,0.000152,2]
[419775521,1775371850627,-150.0,0.000152,2]
[419775522,1775371850636,-10000.0,0.00015205,2]
[419775523,1775371850645,-150.0,0.0001521,2]